fUST/lending_fUST_20251124
["ID","MTS","AMOUNT","RATE_DAILY","PERIOD"]
[394796175,1763959838224,-500.0,8.859e-05,2]
[394796176,1763959838234,-500.0,8.859e-05,2]
[394796177,1763959838243,-500.0,8.859e-05,2]
[394796178,1763959838253,-184.67234206,8.859e-05,2]
[394796179,1763959838263,-500.0,8.859e-05,2]
[394796180,1763959838273,-500.0,8.859e-05,2]
[394796181,1763959838283,-500.0,8.859e-05,2]
[394796182,1763959838293,-500.0,8.859e-05,2]
[394796183,1763959838304,-500.0,8.859e-05,2]
[394796184,1763959838314,-500.0,8.859e-05,2]
[394796185,1763959838324,-500.0,8.859e-05,2]
[394796186,1763959838339,-500.0,8.859e-05,2]
[394796187,1763959838349,-500.0,8.859e-05,2]
[394796188,1763959838359,-500.0,8.859e-05,2]
[394796189,1763959838369,-500.0,8.859e-05,2]
[394796190,1763959838379,-500.0,8.859e-05,2]
[394796191,1763959838388,-500.0,8.859e-05,2]
[394796192,1763959838398,-500.0,8.859e-05,2]
[394796193,1763959838408,-500.0,8.859e-05,2]
[394796194,1763959838417,-500.0,8.859e-05,2]
[394796195,1763959838426,-500.0,8.859e-05,2]
[394796196,1763959838435,-500.0,8.859e-05,2]
[394796197,1763959838444,-500.0,8.859e-05,2]
[394796198,1763959838454,-500.0,8.859e-05,2]
[394796199,1763959838464,-500.0,8.859e-05,2]
[394796200,1763959838474,-500.0,8.859e-05,2]
[394796201,1763959838483,-500.0,8.859e-05,2]
[394796202,1763959838494,-500.0,8.859e-05,2]
[394796203,1763959838503,-500.0,8.859e-05,2]
[394796204,1763959838513,-500.0,8.859e-05,2]
[394796205,1763959838523,-500.0,8.859e-05,2]
[394796206,1763959838532,-500.0,8.859e-05,2]
[394796207,1763959838542,-500.0,8.859e-05,2]
[394796208,1763959838551,-500.0,8.859e-05,2]
[394796209,1763959838561,-500.0,8.859e-05,2]
[394796210,1763959838571,-500.0,8.859e-05,2]
[394796211,1763959838580,-500.0,8.859e-05,2]
[394796212,1763959838590,-500.0,8.859e-05,2]
[394796213,1763959838600,-500.0,8.859e-05,2]
[394796214,1763959838609,-500.0,8.859e-05,2]
[394796215,1763959838618,-500.0,8.859e-05,2]
[394796216,1763959838628,-500.0,8.859e-05,2]
[394796217,1763959838638,-500.0,8.859e-05,2]
[394796218,1763959838647,-500.0,8.859e-05,2]
[394796219,1763959838656,-500.0,8.859e-05,2]
[394796220,1763959838666,-500.0,8.859e-05,2]
[394796221,1763959838675,-500.0,8.859e-05,2]
[394796222,1763959838685,-500.0,8.859e-05,2]
[394796223,1763959838695,-500.0,8.859e-05,2]
[394796224,1763959838706,-500.0,8.859e-05,2]
[394796225,1763959838715,-500.0,8.859e-05,2]
[394796226,1763959838725,-500.0,8.859e-05,2]
[394796227,1763959838735,-500.0,8.859e-05,2]
[394796228,1763959838744,-500.0,8.859e-05,2]
[394796229,1763959838753,-444.14559951,8.859e-05,2]
[394796230,1763959838766,-55.85440049,8.859e-05,2]
[394796231,1763959838775,-500.0,8.859e-05,2]
[394796232,1763959838785,-500.0,8.859e-05,2]
[394796233,1763959838794,-500.0,8.859e-05,2]
[394796234,1763959838804,-500.0,8.859e-05,2]
[394796235,1763959838813,-500.0,8.859e-05,2]
[394796236,1763959838823,-500.0,8.859e-05,2]
[394796237,1763959838832,-500.0,8.859e-05,2]
[394796238,1763959838842,-500.0,8.859e-05,2]
[394796239,1763959838852,-500.0,8.859e-05,2]
[394796240,1763959838861,-500.0,8.859e-05,2]
[394796241,1763959838870,-500.0,8.859e-05,2]
[394796242,1763959838880,-500.0,8.859e-05,2]
[394796243,1763959838889,-500.0,8.859e-05,2]
[394796244,1763959838899,-500.0,8.859e-05,2]
[394796245,1763959838909,-500.0,8.859e-05,2]
[394796246,1763959838919,-500.0,8.859e-05,2]
[394796247,1763959838928,-500.0,8.859e-05,2]
[394796248,1763959838938,-500.0,8.859e-05,2]
[394796249,1763959838948,-500.0,8.859e-05,2]
[394796250,1763959838958,-500.0,8.859e-05,2]
[394796251,1763959838968,-500.0,8.859e-05,2]
[394796252,1763959838977,-500.0,8.859e-05,2]
[394796253,1763959838987,-500.0,8.859e-05,2]
[394796254,1763959838996,-500.0,8.859e-05,2]
[394796255,1763959839006,-500.0,8.859e-05,2]
[394796256,1763959839015,-500.0,8.859e-05,2]
[394796257,1763959839024,-500.0,8.859e-05,2]
[394796258,1763959839033,-500.0,8.859e-05,2]
[394796259,1763959839043,-500.0,8.859e-05,2]
[394796260,1763959839052,-500.0,8.859e-05,2]
[394796261,1763959839062,-500.0,8.859e-05,2]
[394796262,1763959839071,-500.0,8.859e-05,2]
[394796263,1763959839081,-500.0,8.859e-05,2]
[394796264,1763959839090,-500.0,8.859e-05,2]
[394796265,1763959839100,-500.0,8.859e-05,2]
[394796266,1763959839109,-500.0,8.859e-05,2]
[394796267,1763959839118,-500.0,8.859e-05,2]
[394796268,1763959839128,-500.0,8.859e-05,2]
[394796269,1763959839138,-500.0,8.859e-05,2]
[394796270,1763959839148,-500.0,8.859e-05,2]
[394796271,1763959839157,-500.0,8.859e-05,2]
[394796272,1763959839168,-500.0,8.859e-05,2]
[394796273,1763959839178,-500.0,8.859e-05,2]
[394796274,1763959839188,-500.0,8.859e-05,2]
[394796275,1763959839198,-500.0,8.859e-05,2]
[394796276,1763959839210,-500.0,8.859e-05,2]
[394796277,1763959839222,-500.0,8.859e-05,2]
[394796278,1763959839232,-500.0,8.859e-05,2]
[394796279,1763959839242,-500.0,8.859e-05,2]
[394796280,1763959839252,-500.0,8.859e-05,2]
[394796281,1763959839263,-500.0,8.859e-05,2]
[394796282,1763959839273,-500.0,8.859e-05,2]
[394796283,1763959839282,-500.0,8.859e-05,2]
[394796284,1763959839292,-500.0,8.859e-05,2]
[394796285,1763959839304,-500.0,8.859e-05,2]
[394796286,1763959839315,-500.0,8.859e-05,2]
[394796287,1763959839324,-500.0,8.859e-05,2]
[394796288,1763959839334,-500.0,8.859e-05,2]
[394796289,1763959839343,-500.0,8.859e-05,2]
[394796290,1763959839356,-500.0,8.859e-05,2]
[394796291,1763959839368,-500.0,8.859e-05,2]
[394796292,1763959839377,-500.0,8.859e-05,2]
[394796293,1763959839387,-500.0,8.859e-05,2]
[394796294,1763959839397,-500.0,8.859e-05,2]
[394796295,1763959839406,-500.0,8.859e-05,2]
[394796296,1763959839416,-500.0,8.859e-05,2]
[394796297,1763959839425,-500.0,8.859e-05,2]
[394796298,1763959839435,-500.0,8.859e-05,2]
[394796299,1763959839444,-387.23582468,8.859e-05,2]
[394796300,1763959839456,-1200.0,8.86e-05,2]
[394796301,1763959839466,-9099.74803009,8.862e-05,2]
[394796352,1763959840140,-500.0,8.859e-05,2]
[394796354,1763959840149,-500.0,8.859e-05,2]
[394796356,1763959840158,-500.0,8.859e-05,2]
[394796358,1763959840167,-500.0,8.859e-05,2]
[394796360,1763959840176,-500.0,8.859e-05,2]
[394796362,1763959840186,-500.0,8.859e-05,2]
[394796364,1763959840195,-500.0,8.859e-05,2]
[394796366,1763959840204,-500.0,8.859e-05,2]
[394796368,1763959840213,-500.0,8.859e-05,2]
[394796370,1763959840227,-595.06366878,8.859e-05,2]
[394796372,1763959840237,-500.0,8.859e-05,2]
[394796374,1763959840247,-37018.48554975,8.862e-05,2]
[394796377,1763959840259,-3660.38859975,8.862e-05,2]
[394796856,1763959845188,-4602.41534979,8.862e-05,2]
[394796868,1763959846147,-1816.21647409,8.862e-05,2]
[394796869,1763959846256,-678.92998736,8.862e-05,2]
[394796870,1763960438022,169.863,8.176e-05,2]
[394796871,1763960460032,169.863,8.176e-05,2]
[394796872,1763960482679,169.863,8.176e-05,2]
[394796873,1763960505335,169.863,8.176e-05,2]
[394796874,1763960527338,169.863,8.176e-05,2]
[394796875,1763960549295,169.863,8.176e-05,2]
[394796876,1763960571791,169.863,8.176e-05,2]
[394796877,1763960594328,169.863,8.176e-05,2]
[394796878,1763960623712,169.863,8.176e-05,2]
[394796879,1763960684982,206.66940075,8.159e-05,2]
[394796880,1763960747142,-150.0,8.28e-05,2]
[394796881,1763960747163,-150.0,8.364e-05,2]
[394796882,1763960747182,-77.16112593,8.743e-05,2]
[394796884,1763960783854,163.74330405,8.197e-05,2]
[394796885,1763960806947,150.18221372,8.197e-05,2]
[394796886,1763960831114,-163.74330405,8.28e-05,2]
[394796887,1763960831134,-681.81106052,8.655e-05,2]
[394796888,1763960831153,-300.0,8.742e-05,2]
[394796889,1763960831173,-423.62299469,8.743e-05,2]
[394796890,1763960831192,-26.1769808,8.743e-05,2]
[394796891,1763960835082,-475.67747049,8.743e-05,2]
[394796892,1763960835101,-501.45913611,8.743e-05,2]
[394796893,1763960835121,-430.81451559,8.743e-05,2]
[394796894,1763960835140,-219.6090211,8.743e-05,2]
[394796895,1763960835160,-501.49778008,8.743e-05,2]
[394796896,1763960835180,-500.0,8.76e-05,2]
[394796897,1763960835200,-500.0,8.76e-05,2]
[394796898,1763960835219,-500.0,8.76e-05,2]
[394796899,1763960835241,-330.94738447,8.76e-05,2]
[394796900,1763960849097,-169.05261553,8.76e-05,2]
[394796901,1763960849117,-500.0,8.76e-05,2]
[394796902,1763960849139,-500.0,8.76e-05,2]
[394796903,1763960849160,-500.0,8.76e-05,2]
[394796904,1763960849181,-500.0,8.76e-05,2]
[394796905,1763960849201,-500.0,8.76e-05,2]
[394796906,1763960849221,-500.0,8.76e-05,2]
[394796907,1763960849241,-500.0,8.76e-05,2]
[394796908,1763960849260,-500.0,8.76e-05,2]
[394796909,1763960849280,-438.50690372,8.76e-05,2]
[394796910,1763960849300,-500.0,8.76e-05,2]
[394796911,1763960849320,-501.73199814,8.76e-05,2]
[394796912,1763960849341,-500.0,8.76e-05,2]
[394796913,1763960849360,-500.0,8.76e-05,2]
[394796914,1763960849381,-500.0,8.76e-05,2]
[394796915,1763960849400,-500.0,8.76e-05,2]
[394796916,1763960849421,-500.0,8.76e-05,2]
[394796917,1763960849440,-500.0,8.76e-05,2]
[394796918,1763960849460,-500.0,8.76e-05,2]
[394796919,1763960849479,-500.0,8.76e-05,2]
[394796920,1763960849499,-500.0,8.76e-05,2]
[394796921,1763960849519,-500.0,8.76e-05,2]
[394796922,1763960849543,-500.0,8.76e-05,2]
[394796923,1763960849567,-500.0,8.76e-05,2]
[394796924,1763960849588,-500.0,8.76e-05,2]
[394796925,1763960849608,-500.0,8.76e-05,2]
[394796926,1763960849633,-500.0,8.76e-05,2]
[394796927,1763960849652,-500.0,8.76e-05,2]
[394796928,1763960849676,-500.0,8.76e-05,2]
[394796929,1763960849695,-500.0,8.76e-05,2]
[394796930,1763960849719,-372.34251456,8.76e-05,2]
[394796931,1763960849738,-500.0,8.76e-05,2]
[394796932,1763960849762,-500.0,8.76e-05,2]
[394796933,1763960849783,-500.0,8.76e-05,2]
[394796934,1763960849803,-500.0,8.76e-05,2]
[394796935,1763960849827,-500.0,8.76e-05,2]
[394796936,1763960849850,-500.0,8.76e-05,2]
[394796937,1763960849872,-383.37979582,8.76e-05,2]
[394796938,1763960849892,-500.0,8.76e-05,2]
[394796939,1763960849912,-500.0,8.76e-05,2]
[394796940,1763960849937,-500.0,8.76e-05,2]
[394796941,1763960849956,-500.0,8.76e-05,2]
[394796942,1763960849979,-500.0,8.76e-05,2]
[394796943,1763960849999,-500.0,8.76e-05,2]
[394796944,1763960850018,-500.0,8.76e-05,2]
[394796945,1763960850042,-500.0,8.76e-05,2]
[394796946,1763960850062,-500.0,8.76e-05,2]
[394796947,1763960850081,-500.0,8.76e-05,2]
[394796948,1763960850101,-500.0,8.76e-05,2]
[394796949,1763960850126,-500.0,8.76e-05,2]
[394796950,1763960850147,-500.0,8.76e-05,2]
[394796951,1763960850171,-500.0,8.76e-05,2]
[394796952,1763960850191,-500.0,8.76e-05,2]
[394796953,1763960850210,-500.0,8.76e-05,2]
[394796954,1763960850229,-500.0,8.76e-05,2]
[394796955,1763960850252,-500.0,8.76e-05,2]
[394796956,1763960850273,-500.0,8.76e-05,2]
[394796957,1763960850293,-500.0,8.76e-05,2]
[394796958,1763960850318,-190.77405708,8.76e-05,2]
[394796959,1763960964129,-300.0,8.758e-05,2]
[394796960,1763960964153,-500.0,8.759e-05,2]
[394796961,1763960964173,-500.0,8.759e-05,2]
[394796962,1763960964198,-267.76275451,8.759e-05,2]
[394796993,1763961032175,-500.0,8.758e-05,2]
[394796995,1763961032185,-500.0,8.758e-05,2]
[394796997,1763961032194,-306.1418717,8.758e-05,2]
[394797011,1763961032279,-193.8581283,8.758e-05,2]
[394797013,1763961032289,-500.0,8.758e-05,2]
[394797014,1763961032299,-500.0,8.758e-05,2]
[394797016,1763961032308,-500.0,8.758e-05,2]
[394797018,1763961032318,-500.0,8.758e-05,2]
[394797019,1763961032327,-500.0,8.758e-05,2]
[394797021,1763961032336,-500.0,8.758e-05,2]
[394797023,1763961032345,-500.0,8.758e-05,2]
[394797025,1763961032354,-500.0,8.758e-05,2]
[394797027,1763961032364,-500.0,8.758e-05,2]
[394797029,1763961032373,-518.64043402,8.758e-05,2]
[394797031,1763961032382,-187.53245661,8.758e-05,2]
[394797033,1763961032391,-500.0,8.758e-05,2]
[394797035,1763961032401,-500.0,8.758e-05,2]
[394797037,1763961032410,-500.0,8.758e-05,2]
[394797039,1763961032419,-500.0,8.758e-05,2]
[394797041,1763961032428,-500.0,8.758e-05,2]
[394797043,1763961032437,-500.0,8.758e-05,2]
[394797045,1763961032447,-500.0,8.758e-05,2]
[394797047,1763961032456,-500.0,8.758e-05,2]
[394797049,1763961032465,-500.0,8.758e-05,2]
[394797051,1763961032474,-170.0,8.758e-05,2]
[394797053,1763961032483,-671.0,8.759e-05,2]
[394797055,1763961032492,-150.0,8.76e-05,2]
[394797057,1763961032500,-500.0,8.761e-05,2]
[394797059,1763961032510,-424.01288496,8.761e-05,2]
[394797061,1763961032519,-500.0,8.761e-05,2]
[394797063,1763961032528,-326.20819793,8.761e-05,2]
[394797065,1763961032538,-9817.75209862,8.762e-05,2]
[394797397,1763961038876,-498.85073207,8.758e-05,2]
[394797398,1763961038886,-500.0,8.758e-05,2]
[394797399,1763961038897,-500.0,8.758e-05,2]
[394797400,1763961038907,-500.0,8.758e-05,2]
[394797401,1763961038917,-500.0,8.758e-05,2]
[394797402,1763961038927,-500.0,8.758e-05,2]
[394797403,1763961038936,-500.0,8.758e-05,2]
[394797404,1763961038946,-500.0,8.758e-05,2]
[394797405,1763961038956,-500.0,8.758e-05,2]
[394797406,1763961038966,-500.0,8.758e-05,2]
[394797407,1763961038976,-500.0,8.758e-05,2]
[394797408,1763961038986,-500.0,8.758e-05,2]
[394797409,1763961038996,-500.0,8.758e-05,2]
[394797410,1763961039006,-500.0,8.758e-05,2]
[394797411,1763961039016,-500.0,8.758e-05,2]
[394797412,1763961039026,-500.0,8.758e-05,2]
[394797413,1763961039037,-500.0,8.758e-05,2]
[394797414,1763961039047,-500.0,8.758e-05,2]
[394797415,1763961039057,-500.0,8.758e-05,2]
[394797416,1763961039067,-500.0,8.758e-05,2]
[394797417,1763961039076,-500.0,8.758e-05,2]
[394797418,1763961039086,-500.0,8.758e-05,2]
[394797419,1763961039095,-500.0,8.758e-05,2]
[394797420,1763961039105,-500.0,8.758e-05,2]
[394797421,1763961039115,-500.0,8.758e-05,2]
[394797422,1763961039125,-500.0,8.758e-05,2]
[394797423,1763961039134,-500.0,8.758e-05,2]
[394797424,1763961039144,-500.0,8.758e-05,2]
[394797425,1763961039154,-81057.47059174,8.762e-05,2]
[394797426,1763961039166,-482.24165179,8.762e-05,2]
[394797468,1763961040039,-177.26159334,8.762e-05,2]
[394797550,1763961040502,-489.62276395,8.762e-05,2]
[394797554,1763961040523,-596.9,8.762e-05,2]
[394797638,1763961041502,-3172.86532054,8.762e-05,2]
[394798013,1763961044663,-5119.80846302,8.762e-05,2]
[394798016,1763961044675,-5669.61570614,8.762e-05,2]
[394798232,1763961046861,-1179.85419549,8.762e-05,2]
[394798709,1763961361765,169.863,8.248e-05,2]
[394798711,1763961383752,169.863,8.248e-05,2]
[394798712,1763961406424,169.863,8.248e-05,2]
[394798713,1763961428892,169.863,8.248e-05,2]
[394798714,1763961451006,169.863,8.248e-05,2]
[394798715,1763961473036,169.863,8.248e-05,2]
[394798716,1763961495017,169.863,8.248e-05,2]
[394798717,1763961518211,169.863,8.248e-05,2]
[394798718,1763961541445,150.0,8.227e-05,2]
[394798719,1763961920179,150.0,8.227e-05,2]
[394798723,1763961992115,-150.0,8.269e-05,2]
[394798724,1763961992136,-18.19308826,8.352e-05,2]
[394798728,1763962037120,-131.80691174,8.352e-05,2]
[394798729,1763962037141,-18.45669586,8.488e-05,2]
[394798732,1763962123232,-151.40630414,8.403e-05,2]
[394798733,1763962123270,-151.40630414,8.488e-05,2]
[394798734,1763962123308,-300.0,8.66e-05,2]
[394798735,1763962123346,-500.0,8.661e-05,2]
[394798736,1763962123384,-500.0,8.661e-05,2]
[394798737,1763962123421,-540.37375803,8.661e-05,2]
[394798738,1763962123458,-500.0,8.661e-05,2]
[394798739,1763962123502,-500.0,8.661e-05,2]
[394798740,1763962123543,-335.40449267,8.661e-05,2]
[394798741,1763962123591,-500.0,8.661e-05,2]
[394798742,1763962123637,-500.0,8.661e-05,2]
[394798743,1763962123685,-500.0,8.661e-05,2]
[394798744,1763962123738,-500.0,8.661e-05,2]
[394798745,1763962143193,300.0,8.661e-05,2]
[394798746,1763962152220,299.88507321,8.661e-05,2]
[394798747,1763962156110,-47248.74757026,8.662e-05,2]
[394798748,1763962163199,-28665.33276619,8.662e-05,2]
[394798749,1763962173598,500.0,8.661e-05,2]
[394798750,1763962173673,500.0,8.661e-05,2]
[394798751,1763962173747,500.0,8.661e-05,2]
[394798752,1763962173803,500.0,8.661e-05,2]
[394798753,1763962173864,500.0,8.661e-05,2]
[394798754,1763962173937,500.0,8.661e-05,2]
[394798755,1763962174014,500.0,8.661e-05,2]
[394798756,1763962174066,500.0,8.661e-05,2]
[394798757,1763962174116,500.0,8.661e-05,2]
[394798758,1763962174170,500.0,8.661e-05,2]
[394798759,1763962174238,500.0,8.661e-05,2]
[394798760,1763962174300,584.89656589,8.661e-05,2]
[394798761,1763962174355,500.0,8.661e-05,2]
[394798762,1763962174701,500.0,8.661e-05,2]
[394798763,1763962174755,500.0,8.661e-05,2]
[394798764,1763962174802,500.0,8.661e-05,2]
[394798765,1763962174871,500.0,8.661e-05,2]
[394798766,1763962174946,500.0,8.661e-05,2]
[394798767,1763962201608,300.0,8.661e-05,2]
[394798768,1763962202311,300.0,8.661e-05,2]
[394798769,1763962202793,300.0,8.661e-05,2]
[394798770,1763962212474,1200.0,8.661e-05,2]
[394798965,1763962246894,-16.6959564,8.662e-05,2]
[394798966,1763962246915,-1502.95,8.662e-05,2]
[394798967,1763962247018,-17554.4,8.662e-05,2]
[394798968,1763962249052,516.0,0.0001212,6]
[394798972,1763962347242,691.73408148,8.25e-05,2]
[394798973,1763962347268,308.26591852,8.25e-05,2]
[394798974,1763962638044,169.863,8.236e-05,2]
[394798975,1763962653962,169.863,8.236e-05,2]
[394798976,1763962853065,150.0,8.194e-05,2]
[394798977,1763962869428,150.0,8.194e-05,2]
[394798978,1763962877197,150.0,8.236e-05,2]
[394798979,1763962892558,150.0,8.236e-05,2]
[394798980,1763962914880,150.0,8.236e-05,2]
[394798981,1763962937709,150.0,8.236e-05,2]
[394798982,1763962960536,150.0,8.236e-05,2]
[394798983,1763962982448,150.0,8.236e-05,2]
[394798984,1763962998575,150.0,8.236e-05,2]
[394798985,1763963006594,150.0,8.236e-05,2]
[394798986,1763963028861,150.0,8.236e-05,2]
[394798987,1763963051152,150.0,8.236e-05,2]
[394798988,1763963073434,150.0,8.236e-05,2]
[394798989,1763963137313,-150.0,8.346e-05,2]
[394798990,1763963137333,-150.0,8.43e-05,2]
[394798991,1763963137353,-1005.0,8.541e-05,2]
[394798992,1763963137376,-500.0,8.541e-05,2]
[394798993,1763963137401,-500.0,8.541e-05,2]
[394798994,1763963137423,-96.89263554,8.541e-05,2]
[394798995,1763963242086,-526.50611203,8.456e-05,2]
[394798997,1763963357132,-1321.68896248,8.456e-05,2]
[394798998,1763963357154,-403.10736446,8.541e-05,2]
[394798999,1763963357180,-500.0,8.541e-05,2]
[394799000,1763963357211,-418.58159802,8.541e-05,2]
[394799001,1763963357232,-292.03335836,8.542e-05,2]
[394799002,1763963357257,-500.0,8.542e-05,2]
[394799003,1763963357288,-500.0,8.542e-05,2]
[394799004,1763963357309,-500.0,8.542e-05,2]
[394799005,1763963357332,-500.0,8.542e-05,2]
[394799006,1763963357353,-503.8388701,8.542e-05,2]
[394799007,1763963357374,-500.0,8.542e-05,2]
[394799008,1763963357394,-342.29069691,8.542e-05,2]
[394799009,1763963357414,-500.0,8.542e-05,2]
[394799010,1763963357433,-500.13444476,8.543e-05,2]
[394799011,1763963357452,-500.96417398,8.543e-05,2]
[394799012,1763963357472,-500.5558078,8.543e-05,2]
[394799013,1763963357493,-501.32630108,8.543e-05,2]
[394799014,1763963357514,-500.11442282,8.543e-05,2]
[394799015,1763963357533,-500.0,8.543e-05,2]
[394799016,1763963357552,-504.45104468,8.543e-05,2]
[394799017,1763963357571,-500.0,8.543e-05,2]
[394799018,1763963357589,-271.42339297,8.543e-05,2]
[394799019,1763963357608,-383.59728093,8.543e-05,2]
[394799020,1763963359087,-116.40271907,8.543e-05,2]
[394799021,1763963359106,-152.5107836,8.543e-05,2]
[394799022,1763963359125,-500.0,8.543e-05,2]
[394799023,1763963359143,-502.92201498,8.543e-05,2]
[394799024,1763963359162,-500.61397851,8.543e-05,2]
[394799025,1763963359180,-500.0,8.543e-05,2]
[394799026,1763963359198,-506.10866076,8.543e-05,2]
[394799027,1763963359216,-500.0,8.543e-05,2]
[394799028,1763963359234,-500.0,8.543e-05,2]
[394799029,1763963359259,-3431.39079712,8.562e-05,2]
[394799030,1763963362157,-19716.69814296,8.562e-05,2]
[394799068,1763963431674,-312.5384976,8.476e-05,2]
[394799069,1763963431731,-321.0,8.476e-05,2]
[394799074,1763963437615,-491.45435186,8.476e-05,2]
[394799075,1763963437625,-150.0,8.519e-05,2]
[394799076,1763963437634,-551.38627277,8.543e-05,2]
[394799077,1763963437644,-500.0,8.543e-05,2]
[394799078,1763963437654,-500.0,8.543e-05,2]
[394799079,1763963437663,-500.0,8.543e-05,2]
[394799080,1763963437672,-104.3395549,8.543e-05,2]
[394799081,1763963437684,-397.39513497,8.543e-05,2]
[394799082,1763963437694,-500.0,8.543e-05,2]
[394799083,1763963437703,-4414.49125486,8.562e-05,2]
[394799084,1763963437727,-5437.54794521,8.562e-05,2]
[394799145,1763963439961,-58.50067912,8.562e-05,2]
[394799147,1763963439973,-20510.78700647,8.562e-05,2]
[394799517,1763963444590,-204.42335086,8.561e-05,2]
[394799518,1763963444600,-95.57664914,8.562e-05,2]
[394799519,1763963444611,-570.36526887,8.562e-05,2]
[394799548,1763963446117,-500.0,8.561e-05,2]
[394799549,1763963446126,-500.0,8.561e-05,2]
[394799550,1763963446135,-500.0,8.561e-05,2]
[394799551,1763963446145,-500.0,8.561e-05,2]
[394799552,1763963446154,-192.29069691,8.561e-05,2]
[394799553,1763963446162,-500.0,8.561e-05,2]
[394799554,1763963446170,-1996.98133666,8.562e-05,2]
[394799555,1763963658719,154.39091277,8.189e-05,2]
[394799556,1763963681358,154.39091277,8.189e-05,2]
[394799557,1763963703301,154.39091277,8.189e-05,2]
[394799558,1763963725328,154.39091277,8.189e-05,2]
[394799559,1763963841050,154.39091277,8.189e-05,2]
[394799560,1763963967661,169.09025072,0.0002,30]
[394799561,1763964006618,150.0,8.231e-05,2]
[394799562,1763964029012,150.0,8.231e-05,2]
[394799563,1763964359137,-169.863,8.274e-05,2]
[394799564,1763964359156,-150.0,8.335e-05,2]
[394799565,1763964359175,-122.19891074,8.356e-05,2]
[394799566,1763964434109,-210.19789688,8.356e-05,2]
[394799567,1763964443131,-125.27684282,8.356e-05,2]
[394799568,1763964443153,-150.0,8.387e-05,2]
[394799569,1763964443174,-86.86659246,8.417e-05,2]
[394799570,1763964555267,-465.41,8.356e-05,2]
[394799571,1763964555286,-300.0,8.417e-05,2]
[394799572,1763964555305,-19332.67609203,8.418e-05,2]
[394799573,1763964556104,-2123.39727216,8.418e-05,2]
[394799574,1763964559092,-428.82113465,8.418e-05,2]
[394799602,1763964631916,-213.0,8.318e-05,2]
[394799604,1763964631925,-97.21679657,8.319e-05,2]
[394799610,1763964631974,-874.63818407,8.319e-05,2]
[394799617,1763964632033,-926.1868285,8.319e-05,2]
[394799633,1763964637811,-3251.0,8.319e-05,2]
[394799634,1763964637823,-521.37153654,8.319e-05,2]
[394799635,1763964637834,-781.84131774,8.319e-05,2]
[394799636,1763964637845,-1116.45259264,8.319e-05,2]
[394799637,1763964637857,-680.82787613,8.319e-05,2]
[394799653,1763964646317,-23.35532188,8.319e-05,2]
[394799654,1763964657088,170.01349212,8.236e-05,2]
[394799655,1763964702811,169.863,8.153e-05,2]
[394799656,1763964721958,990.17702551,8.218e-05,2]
[394799659,1763965552994,-150.0,8.136e-05,2]
[394799660,1763965553020,-1699.32679066,8.218e-05,2]
[394799661,1763965553052,-150.0,8.237e-05,2]
[394799662,1763965553080,-300.0,8.287e-05,2]
[394799663,1763965553108,-170.0,8.287e-05,2]
[394799664,1763965553135,-700.0,8.288e-05,2]
[394799665,1763965553163,-320.43833864,8.288e-05,2]
[394799666,1763965553189,-500.0,8.288e-05,2]
[394799667,1763965553209,-150.0,8.288e-05,2]
[394799668,1763965553221,-1699.32679066,8.288e-05,2]
[394799669,1763965553240,-150.0,8.288e-05,2]
[394799670,1763965553252,-300.0,8.288e-05,2]
[394799671,1763965553263,-170.0,8.288e-05,2]
[394799672,1763965553274,-700.0,8.288e-05,2]
[394799673,1763965553290,-320.43833864,8.288e-05,2]
[394799674,1763965553301,-500.0,8.288e-05,2]
[394799675,1763965553342,-16020.4697414,8.288e-05,2]
[394799676,1763965554095,-413.35471113,8.288e-05,2]
[394799678,1763965599078,-168.19308826,8.191e-05,2]
[394799695,1763965751131,-500.0,8.19e-05,2]
[394799696,1763965751154,-172.01328406,8.19e-05,2]
[394799697,1763965751177,-500.0,8.19e-05,2]
[394799698,1763965751198,-500.0,8.19e-05,2]